[Event "Betsys MČR v online bleskovém šachu 2021"]
[Site "Chess.com"]
[Date "2021.04.17"]
[Round "13"]
[White "JosefBara"]
[Black "sajmon8"]
[Result "0-1"]
[WhiteElo "1321"]
[BlackElo "1654"]
[TimeControl "180+1"]
[EndTime "11:11:55 PDT"]
[Termination "Uživatel sajmon8 zvítězil na čas"]

1. d4 {[%clk 0:03:00.9]} 1... d5 {[%clk 0:02:58.9]} 2. c4 {[%clk 0:03:00.7]}
2... e6 {[%clk 0:02:57.7]} 3. Nc3 {[%clk 0:03:00.8]} 3... Nf6 {[%clk 0:02:57.1]}
4. Nf3 {[%clk 0:03:01.2]} 4... Be7 {[%clk 0:02:56.1]} 5. Bg5 {[%clk 0:03:01.7]}
5... O-O {[%clk 0:02:55.3]} 6. cxd5 {[%clk 0:03:01.9]} 6... Nxd5 {[%clk
0:02:53.8]} 7. Bxe7 {[%clk 0:03:01.1]} 7... Qxe7 {[%clk 0:02:51.7]} 8. Nxd5
{[%clk 0:03:00.8]} 8... exd5 {[%clk 0:02:52.6]} 9. e3 {[%clk 0:03:00.7]} 9... b6
{[%clk 0:02:51.6]} 10. Be2 {[%clk 0:03:00.3]} 10... Bb7 {[%clk 0:02:50.9]} 11.
O-O {[%clk 0:02:59.9]} 11... Nd7 {[%clk 0:02:47]} 12. b3 {[%clk 0:02:58]} 12...
Rac8 {[%clk 0:02:44.1]} 13. Rc1 {[%clk 0:02:58.2]} 13... c5 {[%clk 0:02:20.7]}
14. dxc5 {[%clk 0:02:57.1]} 14... bxc5 {[%clk 0:02:19.4]} 15. Bb5 {[%clk
0:02:50.3]} 15... Nb6 {[%clk 0:02:17.1]} 16. Re1 {[%clk 0:02:42.4]} 16... Rfd8
{[%clk 0:02:15.6]} 17. a3 {[%clk 0:02:37.9]} 17... a6 {[%clk 0:02:08.4]} 18. Be2
{[%clk 0:02:35.8]} 18... c4 {[%clk 0:01:59.5]} 19. bxc4 {[%clk 0:02:34.9]} 19...
dxc4 {[%clk 0:01:57.4]} 20. Qc2 {[%clk 0:02:28.4]} 20... Qxa3 {[%clk 0:01:56]}
21. Ne5 {[%clk 0:02:23.4]} 21... Qe7 {[%clk 0:01:51.9]} 22. Nxc4 {[%clk
0:02:10.7]} 22... Nxc4 {[%clk 0:01:50.2]} 23. Bxc4 {[%clk 0:02:09.7]} 23... Bd5
{[%clk 0:01:48.2]} 24. Qa4 {[%clk 0:02:02]} 24... Bxc4 {[%clk 0:01:38.7]} 25.
Rxc4 {[%clk 0:02:00.8]} 25... Rxc4 {[%clk 0:01:37.1]} 26. Qxc4 {[%clk
0:02:00.5]} 26... a5 {[%clk 0:01:37]} 27. Qa4 {[%clk 0:01:59.6]} 27... Qc5
{[%clk 0:01:34.2]} 28. h3 {[%clk 0:01:57]} 28... h6 {[%clk 0:01:26.7]} 29. Rb1
{[%clk 0:01:56]} 29... Rd2 {[%clk 0:01:18.8]} 30. Qe4 {[%clk 0:01:42.9]} 30...
g6 {[%clk 0:01:10.5]} 31. Rb8+ {[%clk 0:01:34.1]} 31... Kg7 {[%clk 0:01:04.6]}
32. Qe8 {[%clk 0:01:32.9]} 32... Qc1+ {[%clk 0:00:19.2]} 33. Kh2 {[%clk
0:01:31.1]} 33... Qc7+ {[%clk 0:00:19.3]} 34. f4 {[%clk 0:01:04.5]} 34... Kf6
{[%clk 0:00:17.9]} 35. Qh8+ {[%clk 0:00:53.3]} 35... Kf5 {[%clk 0:00:12.8]} 36.
Rb5+ {[%clk 0:00:50.6]} 36... Ke4 {[%clk 0:00:11.9]} 37. Re5+ {[%clk 0:00:46.6]}
37... Kd3 {[%clk 0:00:11]} 38. Rd5+ {[%clk 0:00:40.4]} 38... Ke2 {[%clk
0:00:10.6]} 39. Rxd2+ {[%clk 0:00:37.4]} 39... Kxd2 {[%clk 0:00:11.5]} 40. Qxh6
{[%clk 0:00:35.5]} 40... Qc6 {[%clk 0:00:08.9]} 41. Qf8 {[%clk 0:00:30.3]} 41...
a4 {[%clk 0:00:07.4]} 42. Qd8+ {[%clk 0:00:24.8]} 42... Kc2 {[%clk 0:00:06.1]}
43. Qd4 {[%clk 0:00:18.6]} 43... a3 {[%clk 0:00:05.6]} 44. Qa1 {[%clk
0:00:12.9]} 44... Qc3 {[%clk 0:00:05.5]} 45. Qf1 {[%clk 0:00:07.3]} 45... a2
{[%clk 0:00:03.6]} 46. Qf2+ {[%clk 0:00:04.1]} 46... Qd2 {[%clk 0:00:03.7]} 47.
Qxd2+ {[%clk 0:00:03]} 47... Kxd2 {[%clk 0:00:02.9]} 48. Kg3 {[%clk 0:00:02.5]}
48... a1=Q {[%clk 0:00:03.8]} 0-1

[Event "Betsys MČR v online bleskovém šachu 2021"]
[Site "Chess.com"]
[Date "2021.04.17"]
[Round "13"]
[White "Rubinus"]
[Black "Jindrich4321"]
[Result "0-1"]
[WhiteElo "2134"]
[BlackElo "1944"]
[TimeControl "180+1"]
[EndTime "11:11:56 PDT"]
[Termination "Uživatel Jindrich4321 zvítězil po vzdání soupeře"]

1. e4 {[%clk 0:02:51.9]} 1... e6 {[%clk 0:02:59.7]} 2. d4 {[%clk 0:02:51.8]}
2... d5 {[%clk 0:02:59.5]} 3. exd5 {[%clk 0:02:52.1]} 3... exd5 {[%clk
0:02:59.1]} 4. Bd3 {[%clk 0:02:52.7]} 4... Bd6 {[%clk 0:02:58.7]} 5. Nc3 {[%clk
0:02:52.7]} 5... Ne7 {[%clk 0:02:58.2]} 6. Nge2 {[%clk 0:02:52.7]} 6... Nbc6
{[%clk 0:02:57.8]} 7. Bg5 {[%clk 0:02:48.9]} 7... f6 {[%clk 0:02:56.6]} 8. Bh4
{[%clk 0:02:48.6]} 8... Nb4 {[%clk 0:02:55.9]} 9. a3 {[%clk 0:02:45.6]} 9...
Nxd3+ {[%clk 0:02:54.9]} 10. Qxd3 {[%clk 0:02:45.5]} 10... O-O {[%clk
0:02:54.1]} 11. f3 {[%clk 0:02:45.3]} 11... Bf5 {[%clk 0:02:51.3]} 12. Qd2
{[%clk 0:02:44.7]} 12... c6 {[%clk 0:02:49]} 13. g4 {[%clk 0:02:44.6]} 13... Bg6
{[%clk 0:02:46.7]} 14. Bg3 {[%clk 0:02:44.6]} 14... Qc7 {[%clk 0:02:40.9]} 15.
O-O-O {[%clk 0:02:40.9]} 15... f5 {[%clk 0:02:38.4]} 16. Bxd6 {[%clk 0:02:35.1]}
16... Qxd6 {[%clk 0:02:37.5]} 17. h4 {[%clk 0:02:34.8]} 17... fxg4 {[%clk
0:02:26.5]} 18. fxg4 {[%clk 0:02:34.2]} 18... Rf2 {[%clk 0:02:19.8]} 19. h5
{[%clk 0:02:28.5]} 19... Bf7 {[%clk 0:02:15.1]} 20. Rdf1 {[%clk 0:02:22.9]}
20... Rxf1+ {[%clk 0:02:12.7]} 21. Rxf1 {[%clk 0:02:21.6]} 21... Be6 {[%clk
0:02:10.8]} 22. Qg5 {[%clk 0:02:03.1]} 22... h6 {[%clk 0:02:01.3]} 23. Qh4
{[%clk 0:01:59.7]} 23... Rf8 {[%clk 0:01:52.6]} 24. Rxf8+ {[%clk 0:01:57]} 24...
Kxf8 {[%clk 0:01:52.1]} 25. Qf2+ {[%clk 0:01:55.9]} 25... Kg8 {[%clk 0:01:50.1]}
26. Qf3 {[%clk 0:01:50.7]} 26... Qd7 {[%clk 0:01:46.6]} 27. Nf4 {[%clk
0:01:38.2]} 27... Bxg4 {[%clk 0:01:42.3]} 28. Qe3 {[%clk 0:01:37.8]} 28... Bf5
{[%clk 0:01:23.4]} 29. Qe5 {[%clk 0:01:32.9]} 29... Kh7 {[%clk 0:01:18.7]} 30.
b4 {[%clk 0:01:32]} 30... a6 {[%clk 0:01:17.1]} 31. Na4 {[%clk 0:01:26.3]} 31...
b6 {[%clk 0:01:15.5]} 32. Nxb6 {[%clk 0:01:23.2]} 32... Qd8 {[%clk 0:01:02.8]}
33. Na4 {[%clk 0:01:20.9]} 33... Bg4 {[%clk 0:00:54.2]} 34. Nc5 {[%clk
0:01:17.7]} 34... Ng8 {[%clk 0:00:53]} 35. Nce6 {[%clk 0:01:13]} 35... Qe7
{[%clk 0:00:51.9]} 36. Nc5 {[%clk 0:00:58.2]} 36... Qxe5 {[%clk 0:00:49.7]} 37.
dxe5 {[%clk 0:00:58.2]} 37... Ne7 {[%clk 0:00:48.9]} 38. Nxa6 {[%clk 0:00:56.6]}
38... g5 {[%clk 0:00:46]} 39. hxg6+ {[%clk 0:00:55.4]} 39... Nxg6 {[%clk
0:00:45.7]} 40. Nxg6 {[%clk 0:00:45.4]} 40... Kxg6 {[%clk 0:00:45.5]} 41. Nc5
{[%clk 0:00:44.8]} 41... h5 {[%clk 0:00:44.5]} 42. Nd3 {[%clk 0:00:44.5]} 42...
h4 {[%clk 0:00:43]} 43. a4 {[%clk 0:00:41.7]} 43... h3 {[%clk 0:00:40.3]} 44.
Nf4+ {[%clk 0:00:37.9]} 44... Kf5 {[%clk 0:00:38.2]} 45. Nxh3 {[%clk 0:00:34.5]}
45... Bxh3 {[%clk 0:00:37.6]} 46. b5 {[%clk 0:00:32.3]} 46... cxb5 {[%clk
0:00:36.2]} 47. a5 {[%clk 0:00:32.7]} 47... Kxe5 {[%clk 0:00:36.6]} 48. a6
{[%clk 0:00:32.9]} 48... Bc8 {[%clk 0:00:36.3]} 49. Kb2 {[%clk 0:00:32.9]} 49...
Bxa6 {[%clk 0:00:35.2]} 50. Ka3 {[%clk 0:00:32.9]} 50... d4 {[%clk 0:00:35.4]}
51. Kb4 {[%clk 0:00:33.1]} 51... Bc8 {[%clk 0:00:33.7]} 52. Kxb5 {[%clk
0:00:33]} 52... Bf5 {[%clk 0:00:33.5]} 53. Kc4 {[%clk 0:00:28.9]} 53... Bxc2
{[%clk 0:00:32.7]} 54. Kb4 {[%clk 0:00:28.8]} 54... Ke4 {[%clk 0:00:31.5]} 55.
Kc4 {[%clk 0:00:28.3]} 55... Bd1 {[%clk 0:00:31.2]} 56. Kb4 {[%clk 0:00:27.5]}
56... Ke3 {[%clk 0:00:31.2]} 57. Kc4 {[%clk 0:00:27.5]} 57... d3 {[%clk
0:00:31.1]} 58. Kc3 {[%clk 0:00:27.7]} 58... Bf3 {[%clk 0:00:30.2]} 59. Kb2
{[%clk 0:00:26.8]} 59... d2 {[%clk 0:00:29.8]} 60. Kc3 {[%clk 0:00:25.5]} 60...
d1=Q {[%clk 0:00:28.6]} 61. Kb4 {[%clk 0:00:25.5]} 61... Qc1 {[%clk 0:00:27.7]}
62. Kb3 {[%clk 0:00:25.4]} 62... Kd4 {[%clk 0:00:26.8]} 63. Kb4 {[%clk
0:00:25.7]} 63... Qb1+ {[%clk 0:00:25.8]} 64. Ka3 {[%clk 0:00:25]} 64... Kc4
{[%clk 0:00:21.3]} 0-1

[Event "Betsys MČR v online bleskovém šachu 2021"]
[Site "Chess.com"]
[Date "2021.04.17"]
[Round "13"]
[White "DrStillestein"]
[Black "mysacek1414"]
[Result "1-0"]
[WhiteElo "2103"]
[BlackElo "1914"]
[TimeControl "180+1"]
[EndTime "11:11:57 PDT"]
[Termination "Uživatel DrStillestein zvítězil na čas"]

1. e4 {[%clk 0:03:00.9]} 1... e6 {[%clk 0:03:00.1]} 2. d4 {[%clk 0:02:59.8]}
2... d5 {[%clk 0:03:00.6]} 3. e5 {[%clk 0:02:59.1]} 3... c5 {[%clk 0:03:00.2]}
4. c3 {[%clk 0:02:59]} 4... Nc6 {[%clk 0:03:00.9]} 5. Nf3 {[%clk 0:02:58.9]}
5... Bd7 {[%clk 0:03:01.4]} 6. Be3 {[%clk 0:02:55]} 6... Nh6 {[%clk 0:02:56.2]}
7. Bd3 {[%clk 0:02:52.6]} 7... Qb6 {[%clk 0:02:52.3]} 8. Qb3 {[%clk 0:02:52]}
8... cxd4 {[%clk 0:02:40.1]} 9. Qxb6 {[%clk 0:02:49.6]} 9... axb6 {[%clk
0:02:40.1]} 10. Bxd4 {[%clk 0:02:47.1]} 10... Bc5 {[%clk 0:02:32]} 11. Nbd2
{[%clk 0:02:40]} 11... Bxd4 {[%clk 0:02:05.9]} 12. cxd4 {[%clk 0:02:39.8]} 12...
Nb4 {[%clk 0:02:05.3]} 13. Bb1 {[%clk 0:02:37.1]} 13... Bb5 {[%clk 0:02:04.7]}
14. a3 {[%clk 0:02:25]} 14... O-O {[%clk 0:02:00.3]} 15. Nb3 {[%clk 0:01:53.7]}
15... Nd3+ {[%clk 0:01:58.1]} 16. Bxd3 {[%clk 0:01:51.7]} 16... Bxd3 {[%clk
0:01:58.6]} 17. Kd2 {[%clk 0:01:51.7]} 17... Be4 {[%clk 0:01:56.1]} 18. Ke2
{[%clk 0:01:39.8]} 18... Bc2 {[%clk 0:01:51.7]} 19. Nfd2 {[%clk 0:01:29.9]}
19... Rfc8 {[%clk 0:01:45.8]} 20. Rhc1 {[%clk 0:01:28.8]} 20... Nf5 {[%clk
0:01:41.9]} 21. g4 {[%clk 0:01:24.9]} 21... Ne7 {[%clk 0:01:41.6]} 22. f4 {[%clk
0:01:18.6]} 22... Ng6 {[%clk 0:01:38.4]} 23. Ke3 {[%clk 0:01:15.2]} 23... Ra4
{[%clk 0:01:23.6]} 24. Ra2 {[%clk 0:01:02.3]} 24... Ne7 {[%clk 0:01:13.3]} 25.
Na1 {[%clk 0:00:58.8]} 25... Bg6 {[%clk 0:01:04.7]} 26. Rxc8+ {[%clk 0:00:58.7]}
26... Nxc8 {[%clk 0:01:05.1]} 27. b3 {[%clk 0:00:58.7]} 27... Ra8 {[%clk
0:01:01.1]} 28. b4 {[%clk 0:00:56.2]} 28... Ne7 {[%clk 0:01:00.3]} 29. Nab3
{[%clk 0:00:54]} 29... h5 {[%clk 0:00:57.8]} 30. h3 {[%clk 0:00:52.6]} 30... Rc8
{[%clk 0:00:56.9]} 31. gxh5 {[%clk 0:00:42.1]} 31... Rc3+ {[%clk 0:00:49.3]} 32.
Kf2 {[%clk 0:00:40.7]} 32... Bxh5 {[%clk 0:00:46.1]} 33. a4 {[%clk 0:00:41]}
33... Rxh3 {[%clk 0:00:41.8]} 34. a5 {[%clk 0:00:41.4]} 34... bxa5 {[%clk
0:00:41.3]} 35. bxa5 {[%clk 0:00:39.2]} 35... Nc6 {[%clk 0:00:35.5]} 36. Nc5
{[%clk 0:00:38.3]} 36... Nxd4 {[%clk 0:00:31.7]} 37. Nxb7 {[%clk 0:00:38.6]}
37... Rh2+ {[%clk 0:00:30.9]} 38. Ke3 {[%clk 0:00:35.8]} 38... Nf5+ {[%clk
0:00:17.9]} 39. Kd3 {[%clk 0:00:34.9]} 39... Be2+ {[%clk 0:00:13.6]} 40. Kc3
{[%clk 0:00:32.9]} 40... Bb5 {[%clk 0:00:13.6]} 41. a6 {[%clk 0:00:28.8]} 41...
d4+ {[%clk 0:00:11.3]} 42. Kc2 {[%clk 0:00:24.4]} 42... Ne3+ {[%clk 0:00:09.5]}
43. Kc1 {[%clk 0:00:22.1]} 43... Rh1+ {[%clk 0:00:08.8]} 44. Kb2 {[%clk
0:00:22.1]} 44... Bxa6 {[%clk 0:00:05.7]} 45. Rxa6 {[%clk 0:00:21.7]} 45... Rh2
{[%clk 0:00:05.7]} 46. Ra8+ {[%clk 0:00:19.4]} 46... Kh7 {[%clk 0:00:03.7]} 47.
Kc1 {[%clk 0:00:19.4]} 47... Rh1+ {[%clk 0:00:04]} 48. Kb2 {[%clk 0:00:19.8]}
48... Rh2 {[%clk 0:00:04.6]} 49. Kb3 {[%clk 0:00:19.9]} 49... Rxd2 {[%clk
0:00:04.4]} 50. Rf8 {[%clk 0:00:20.2]} 50... Kg6 {[%clk 0:00:04]} 51. Nd6 {[%clk
0:00:19.4]} 51... Nf5 {[%clk 0:00:03]} 52. Nxf7 {[%clk 0:00:17.2]} 52... d3
{[%clk 0:00:01.8]} 53. Nd8 {[%clk 0:00:17.1]} 1-0

[Event "Betsys MČR v online bleskovém šachu 2021"]
[Site "Chess.com"]
[Date "2021.04.17"]
[Round "13"]
[White "milanpetras"]
[Black "Zelezny1984"]
[Result "0-1"]
[WhiteElo "1855"]
[BlackElo "2066"]
[TimeControl "180+1"]
[EndTime "11:11:57 PDT"]
[Termination "Uživatel Zelezny1984 zvítězil na čas"]

1. e4 {[%clk 0:03:00.4]} 1... c5 {[%clk 0:03:00.1]} 2. Nf3 {[%clk 0:02:58.1]}
2... a6 {[%clk 0:02:59.5]} 3. c3 {[%clk 0:02:56.6]} 3... e6 {[%clk 0:02:59.3]}
4. d4 {[%clk 0:02:56.4]} 4... d5 {[%clk 0:02:59.7]} 5. e5 {[%clk 0:02:47.6]}
5... Bd7 {[%clk 0:02:59]} 6. Be3 {[%clk 0:02:34]} 6... cxd4 {[%clk 0:02:57.9]}
7. cxd4 {[%clk 0:02:30]} 7... Ne7 {[%clk 0:02:57.9]} 8. Bd3 {[%clk 0:02:20.4]}
8... Bb5 {[%clk 0:02:57.9]} 9. Nc3 {[%clk 0:02:18.3]} 9... Bxd3 {[%clk
0:02:56.7]} 10. Qxd3 {[%clk 0:02:19.2]} 10... Nf5 {[%clk 0:02:54.6]} 11. O-O
{[%clk 0:02:15.9]} 11... Nc6 {[%clk 0:02:49.9]} 12. a3 {[%clk 0:02:12.4]} 12...
Be7 {[%clk 0:02:48.8]} 13. b4 {[%clk 0:02:12.1]} 13... b5 {[%clk 0:02:42.1]} 14.
Rac1 {[%clk 0:01:56.9]} 14... Rc8 {[%clk 0:02:42.5]} 15. Nb1 {[%clk 0:01:54.4]}
15... O-O {[%clk 0:02:35.5]} 16. Nbd2 {[%clk 0:01:54.2]} 16... f6 {[%clk
0:02:16.4]} 17. exf6 {[%clk 0:01:49.1]} 17... Bxf6 {[%clk 0:02:15.4]} 18. Nb3
{[%clk 0:01:47.9]} 18... Be7 {[%clk 0:02:09.3]} 19. Rc2 {[%clk 0:01:43.8]} 19...
Qb6 {[%clk 0:01:48.8]} 20. Rfc1 {[%clk 0:01:39.3]} 20... Na7 {[%clk 0:01:47.8]}
21. Nc5 {[%clk 0:01:34]} 21... Bxc5 {[%clk 0:01:46.3]} 22. Rxc5 {[%clk
0:01:30.8]} 22... Rxc5 {[%clk 0:01:46.7]} 23. Rxc5 {[%clk 0:01:29.4]} 23... Rc8
{[%clk 0:01:46.7]} 24. Bf4 {[%clk 0:01:22.5]} 24... Rxc5 {[%clk 0:01:39.6]} 25.
dxc5 {[%clk 0:01:17.7]} 25... Qc6 {[%clk 0:01:30.6]} 26. Ne5 {[%clk 0:01:16.7]}
26... Qc8 {[%clk 0:01:26.3]} 27. g4 {[%clk 0:01:14.6]} 27... Nh4 {[%clk
0:01:14.3]} 28. Bg3 {[%clk 0:01:11.8]} 28... Qd8 {[%clk 0:00:54.4]} 29. c6
{[%clk 0:01:03.8]} 29... Ng6 {[%clk 0:00:36.2]} 30. Qc2 {[%clk 0:00:49.4]} 30...
Ne7 {[%clk 0:00:26.4]} 31. Qc5 {[%clk 0:00:38.3]} 31... Nac8 {[%clk 0:00:19.9]}
32. Bh4 {[%clk 0:00:30.9]} 32... Qe8 {[%clk 0:00:16.2]} 33. Bxe7 {[%clk
0:00:19.7]} 33... Qxe7 {[%clk 0:00:17.1]} 34. Qxe7 {[%clk 0:00:18.7]} 34... Nxe7
{[%clk 0:00:18]} 35. c7 {[%clk 0:00:17.6]} 35... g6 {[%clk 0:00:17.9]} 36. Nc6
{[%clk 0:00:17.1]} 36... Nc8 {[%clk 0:00:17.2]} 37. Nd8 {[%clk 0:00:14.7]} 37...
e5 {[%clk 0:00:14.6]} 38. Kf1 {[%clk 0:00:10.7]} 38... Kf8 {[%clk 0:00:15]} 39.
Ke2 {[%clk 0:00:09.8]} 39... Ke7 {[%clk 0:00:15.4]} 40. f3 {[%clk 0:00:06.8]}
40... Kd6 {[%clk 0:00:15]} 41. Nf7+ {[%clk 0:00:05.4]} 41... Ke6 {[%clk
0:00:14.2]} 42. Nd8+ {[%clk 0:00:05.2]} 42... Kd7 {[%clk 0:00:14.4]} 43. Nf7
{[%clk 0:00:05]} 43... Kxc7 {[%clk 0:00:11.4]} 44. Nxe5 {[%clk 0:00:04.8]} 44...
Kd6 {[%clk 0:00:10.3]} 45. Nd3 {[%clk 0:00:04]} 45... Nb6 {[%clk 0:00:09.6]} 46.
f4 {[%clk 0:00:02.8]} 46... Nc4 {[%clk 0:00:10]} 47. Nc5 {[%clk 0:00:02.8]}
47... Nxa3 {[%clk 0:00:08.2]} 48. Nxa6 {[%clk 0:00:02.3]} 48... d4 {[%clk
0:00:08]} 49. Kd3 {[%clk 0:00:02.6]} 49... Kd5 {[%clk 0:00:08.3]} 50. Nc7+
{[%clk 0:00:01.8]} 50... Kc6 {[%clk 0:00:07.7]} 51. Na6 {[%clk 0:00:01.6]} 51...
Kd5 {[%clk 0:00:07.5]} 0-1

[Event "Betsys MČR v online bleskovém šachu 2021"]
[Site "Chess.com"]
[Date "2021.04.17"]
[Round "13"]
[White "l_pavlasek"]
[Black "hever99"]
[Result "0-1"]
[WhiteElo "1651"]
[BlackElo "1947"]
[TimeControl "180+1"]
[EndTime "11:11:57 PDT"]
[Termination "Uživatel hever99 zvítězil na čas"]

1. e4 {[%clk 0:03:00.9]} 1... c5 {[%clk 0:02:59.7]} 2. Nf3 {[%clk 0:03:00.2]}
2... d6 {[%clk 0:02:59.6]} 3. d4 {[%clk 0:02:56.5]} 3... cxd4 {[%clk 0:02:59.6]}
4. Nxd4 {[%clk 0:02:56.6]} 4... Nf6 {[%clk 0:02:59.2]} 5. Nc3 {[%clk 0:02:55.4]}
5... a6 {[%clk 0:02:59.1]} 6. Nf3 {[%clk 0:02:49.3]} 6... Nc6 {[%clk 0:02:56.6]}
7. Bf4 {[%clk 0:02:44.7]} 7... Bg4 {[%clk 0:02:26]} 8. Be2 {[%clk 0:02:30.3]}
8... h6 {[%clk 0:02:23.7]} 9. e5 {[%clk 0:02:22.6]} 9... dxe5 {[%clk 0:02:03.6]}
10. Qxd8+ {[%clk 0:02:18.7]} 10... Rxd8 {[%clk 0:01:59.4]} 11. Nxe5 {[%clk
0:02:16.7]} 11... Nxe5 {[%clk 0:01:56.6]} 12. Bxe5 {[%clk 0:02:14.3]} 12... Bf5
{[%clk 0:01:42.7]} 13. Bf3 {[%clk 0:01:54.5]} 13... Nd7 {[%clk 0:00:44.2]} 14.
Bg3 {[%clk 0:01:42.3]} 14... e6 {[%clk 0:00:31.4]} 15. Bxb7 {[%clk 0:01:38.6]}
15... Bb4 {[%clk 0:00:25.4]} 16. Bc7 {[%clk 0:01:31.3]} 16... Nc5 {[%clk
0:00:19.8]} 17. Bc6+ {[%clk 0:01:22.9]} 17... Ke7 {[%clk 0:00:19.9]} 18. Bxd8+
{[%clk 0:01:16.6]} 18... Rxd8 {[%clk 0:00:19.3]} 19. O-O {[%clk 0:01:09]} 19...
Rd2 {[%clk 0:00:17.2]} 20. Na4 {[%clk 0:00:41.6]} 20... Rxc2 {[%clk 0:00:12.3]}
21. Nxc5 {[%clk 0:00:39.9]} 21... Rxc5 {[%clk 0:00:10.4]} 22. Ba4 {[%clk
0:00:36.4]} 22... Ra5 {[%clk 0:00:08.8]} 23. b3 {[%clk 0:00:35.9]} 23... Re5
{[%clk 0:00:06.2]} 24. Rad1 {[%clk 0:00:34.5]} 24... Re2 {[%clk 0:00:06.5]} 25.
Rd7+ {[%clk 0:00:33.2]} 25... Kf6 {[%clk 0:00:06.6]} 26. Ra7 {[%clk 0:00:27.1]}
26... Rxa2 {[%clk 0:00:03.7]} 27. Rxa6 {[%clk 0:00:25.4]} 27... Rb2 {[%clk
0:00:03]} 28. Rb6 {[%clk 0:00:24.5]} 28... Bc3 {[%clk 0:00:01.4]} 29. Rb7 {[%clk
0:00:23]} 29... Be5 {[%clk 0:00:02.3]} 30. Be8 {[%clk 0:00:21.8]} 30... Bg6
{[%clk 0:00:01.7]} 31. Ba4 {[%clk 0:00:18.8]} 31... Rc2 {[%clk 0:00:01.9]} 32.
Ra7 {[%clk 0:00:18.3]} 32... Rb2 {[%clk 0:00:02.8]} 33. Rb7 {[%clk 0:00:18.4]}
33... Rc2 {[%clk 0:00:03.7]} 34. h3 {[%clk 0:00:18.1]} 34... Rb2 {[%clk
0:00:04.6]} 35. Re1 {[%clk 0:00:17.1]} 35... Rc2 {[%clk 0:00:05.5]} 36. Rd1
{[%clk 0:00:16.3]} 36... Rb2 {[%clk 0:00:06.4]} 37. Be8 {[%clk 0:00:13.4]} 37...
Rc2 {[%clk 0:00:07.3]} 38. g3 {[%clk 0:00:10.9]} 38... Rb2 {[%clk 0:00:08.2]}
39. Rdd7 {[%clk 0:00:09.3]} 39... Rc2 {[%clk 0:00:09.1]} 40. Bxf7 {[%clk
0:00:08]} 40... Bxg3 {[%clk 0:00:10]} 41. fxg3 {[%clk 0:00:06.8]} 41... Bxf7
{[%clk 0:00:10.9]} 42. Rxf7+ {[%clk 0:00:05.3]} 42... Ke5 {[%clk 0:00:10.3]} 43.
Rf1 {[%clk 0:00:04.8]} 43... Ke4 {[%clk 0:00:11.2]} 44. Rf2 {[%clk 0:00:03.6]}
44... Ke3 {[%clk 0:00:12.1]} 45. Rxc2 {[%clk 0:00:02.8]} 45... Kd3 {[%clk
0:00:11.8]} 46. Rc1 {[%clk 0:00:02.8]} 46... Ke3 {[%clk 0:00:12]} 47. Rf1 {[%clk
0:00:02.8]} 47... Ke4 {[%clk 0:00:12.9]} 48. Re1+ {[%clk 0:00:02.8]} 48... Kd4
{[%clk 0:00:12.6]} 49. Kf1 {[%clk 0:00:02.7]} 49... e5 {[%clk 0:00:12.9]} 50. b4
{[%clk 0:00:02.9]} 50... e4 {[%clk 0:00:13.8]} 51. b5 {[%clk 0:00:03.2]} 51...
e3 {[%clk 0:00:14.7]} 52. b6 {[%clk 0:00:03.1]} 52... Kd3 {[%clk 0:00:15.6]} 53.
Rd7+ {[%clk 0:00:02.6]} 53... Kc4 {[%clk 0:00:15.1]} 54. b7 {[%clk 0:00:02.7]}
54... Kc5 {[%clk 0:00:15.3]} 55. b8=Q {[%clk 0:00:01.9]} 55... e2+ {[%clk
0:00:16.2]} 0-1

[Event "Betsys MČR v online bleskovém šachu 2021"]
[Site "Chess.com"]
[Date "2021.04.17"]
[Round "13"]
[White "Federer302"]
[Black "catanist19"]
[Result "0-1"]
[WhiteElo "1574"]
[BlackElo "1744"]
[TimeControl "180+1"]
[EndTime "11:11:57 PDT"]
[Termination "Uživatel catanist19 zvítězil na čas"]

1. d4 {[%clk 0:03:00.9]} 1... d5 {[%clk 0:02:58.9]} 2. c4 {[%clk 0:03:00.1]}
2... e6 {[%clk 0:02:58.6]} 3. Nc3 {[%clk 0:02:59.6]} 3... Nf6 {[%clk 0:02:57.5]}
4. cxd5 {[%clk 0:02:59.5]} 4... exd5 {[%clk 0:02:55.2]} 5. Bg5 {[%clk
0:02:59.1]} 5... c6 {[%clk 0:02:53.7]} 6. Nf3 {[%clk 0:02:57.7]} 6... Be7 {[%clk
0:02:52.4]} 7. e3 {[%clk 0:02:57.2]} 7... Bf5 {[%clk 0:02:51.7]} 8. Bd3 {[%clk
0:02:56.6]} 8... Bxd3 {[%clk 0:02:50.9]} 9. Qxd3 {[%clk 0:02:55.9]} 9... Nbd7
{[%clk 0:02:50.7]} 10. h3 {[%clk 0:02:52.2]} 10... O-O {[%clk 0:02:49.1]} 11.
O-O {[%clk 0:02:50.5]} 11... h6 {[%clk 0:02:46.5]} 12. Bf4 {[%clk 0:02:47]}
12... c5 {[%clk 0:02:39.7]} 13. dxc5 {[%clk 0:02:22.5]} 13... Nxc5 {[%clk
0:02:37.2]} 14. Qe2 {[%clk 0:02:21.5]} 14... Nce4 {[%clk 0:02:31.8]} 15. Nxe4
{[%clk 0:01:59.5]} 15... Nxe4 {[%clk 0:02:26.5]} 16. Rfd1 {[%clk 0:01:52]} 16...
Rc8 {[%clk 0:02:21.3]} 17. Rac1 {[%clk 0:01:44.7]} 17... Qa5 {[%clk 0:02:08.3]}
18. a3 {[%clk 0:01:39.7]} 18... Bf6 {[%clk 0:01:59.4]} 19. Nd4 {[%clk
0:01:20.7]} 19... Bxd4 {[%clk 0:01:51.2]} 20. exd4 {[%clk 0:01:20.8]} 20... Rc6
{[%clk 0:01:43.7]} 21. Rxc6 {[%clk 0:01:16.6]} 21... bxc6 {[%clk 0:01:42.6]} 22.
Qg4 {[%clk 0:01:13.6]} 22... Nf6 {[%clk 0:01:31.6]} 23. Qf5 {[%clk 0:01:06.8]}
23... Re8 {[%clk 0:01:21.5]} 24. Bxh6 {[%clk 0:01:04.8]} 24... Re1+ {[%clk
0:01:15.9]} 25. Rxe1 {[%clk 0:00:37]} 25... Qxe1+ {[%clk 0:01:14.6]} 26. Kh2
{[%clk 0:00:37.9]} 26... Qe4 {[%clk 0:01:01.8]} 27. Qxe4 {[%clk 0:00:31.7]}
27... Nxe4 {[%clk 0:01:00.2]} 28. Be3 {[%clk 0:00:30.7]} 28... Nd6 {[%clk
0:00:57.2]} 29. b4 {[%clk 0:00:29.4]} 29... Nc4 {[%clk 0:00:55.7]} 30. Bc1
{[%clk 0:00:28.2]} 30... g6 {[%clk 0:00:51.2]} 31. Kg3 {[%clk 0:00:27.5]} 31...
Kg7 {[%clk 0:00:49.1]} 32. Kf3 {[%clk 0:00:26.6]} 32... Kf6 {[%clk 0:00:48.7]}
33. g4 {[%clk 0:00:25.2]} 33... Ke6 {[%clk 0:00:47.1]} 34. h4 {[%clk 0:00:24.6]}
34... Nd6 {[%clk 0:00:43.6]} 35. h5 {[%clk 0:00:24]} 35... gxh5 {[%clk
0:00:40.5]} 36. gxh5 {[%clk 0:00:24]} 36... Kf6 {[%clk 0:00:40.3]} 37. h6 {[%clk
0:00:22.7]} 37... Kg6 {[%clk 0:00:39.7]} 38. Bf4 {[%clk 0:00:19.9]} 38... Nb5
{[%clk 0:00:36.6]} 39. a4 {[%clk 0:00:17.9]} 39... Nxd4+ {[%clk 0:00:35.8]} 40.
Ke3 {[%clk 0:00:18]} 40... Nc2+ {[%clk 0:00:35.2]} 41. Kd3 {[%clk 0:00:16.9]}
41... Nxb4+ {[%clk 0:00:34.7]} 42. Kd4 {[%clk 0:00:16.7]} 42... Nc2+ {[%clk
0:00:30.8]} 43. Kc5 {[%clk 0:00:15.8]} 43... d4 {[%clk 0:00:28]} 44. Kxc6 {[%clk
0:00:13.3]} 44... d3 {[%clk 0:00:27]} 45. Kb7 {[%clk 0:00:12.9]} 45... Nd4
{[%clk 0:00:23.5]} 46. Kxa7 {[%clk 0:00:11.7]} 46... Ne2 {[%clk 0:00:22.1]} 47.
Be3 {[%clk 0:00:10.3]} 47... Nc3 {[%clk 0:00:19.7]} 48. Kb7 {[%clk 0:00:07.9]}
48... Nxa4 {[%clk 0:00:18.8]} 49. Kc6 {[%clk 0:00:06.8]} 49... Nb2 {[%clk
0:00:14.3]} 50. Kd5 {[%clk 0:00:06.7]} 50... Nd1 {[%clk 0:00:13.7]} 51. Kd4
{[%clk 0:00:05.9]} 51... Nxe3 {[%clk 0:00:12.5]} 52. Kxd3 {[%clk 0:00:02.2]}
52... Nf5 {[%clk 0:00:11.2]} 0-1